{"text_format":"1","workbook":"xlsx","n_sheets":5,"sheets":["Home","Klantgegevens","Artikelgegevens","Factuur","Eigen bedrijfsgegevens"],"not_rendered":{"charts":0,"images":4,"macros":1,"external_links":0,"defined_names":1,"comments":0,"pivot_tables":0},"unopened":[],"bounds":{"document_bytes":16777216,"sheet_cells":100000,"rows_first":2000,"rows_last":500,"rows_between":2000,"halvings":0,"cell_chars":16384,"cell_head_chars":4096},"cells_cut":0,"cells_raw":0,"read":"whole","date_system":"1900"}

{"sheet":"Home","index":0,"n_rows":20,"n_cols":19,"rows_kept":20,"cut":false,"hidden":false,"merged":[]}
[null,null,null,null,null,null,null,null,null,null,null,null,null,null,null,null,null,"Datum start","2019-09-12"]
[null,null,null,null,null,null,null,null,null,null,null,null,null,null,null,null,null,"Datum nu"]
[null,null,null,null,null,null,null,null,null,null,null,null,null,null,null,null,null,"Verschil"]
[null,null,null,null,null,null,null,null,null,null,null,null,null,null,null,null,null,"Check 1"]
[null,null,null,null,null,null,null,null,null,null,null,null,null,null,null,null,null,"Check 2"]
[null,null,null,null,null,null,null,null,null,null,null,null,null,null,null,null,null,"Check 3"]
[null,null,null,null,null,null,null,null,null,null,null,null,null,null,null,null,null,"Check 4"]
[null,null,null,null,null,null,null,null,null,null,null,null,null,null,null,null,null,"Check 5"]
[null,null,null,null,null,null,null,null,null,null,null,null,null,null,null,null,null,"Check 6"]
[null,null,null,null,null,null,null,null,null,null,null,null,null,null,null,null,null,"Check 7"]
[]
[]
[]
[]
[]
[]
[]
[]
[null,null,null,null,"*","info@terzake-excel.nl"]
[null,null,null,null,"(","0317 200 009"]

{"sheet":"Klantgegevens","index":1,"n_rows":1,"n_cols":7,"rows_kept":1,"cut":false,"hidden":false,"merged":[]}
[null,"Bedrijfsnaam","Contactpersoon","Straatnaam en huisnummer","Postcode","Plaats","BTW-nummer"]

{"sheet":"Artikelgegevens","index":2,"n_rows":1,"n_cols":6,"rows_kept":1,"cut":false,"hidden":false,"merged":[]}
[null,"Artikelnummer","Artikelomschrijving","Eenheid","Prijs","BTW"]

{"sheet":"Factuur","index":3,"n_rows":48,"n_cols":10,"rows_kept":48,"cut":false,"hidden":false,"merged":[]}
[]
[]
[]
[]
[null,null,null,null,null,null,"Adres:","Ter Zake Excel"]
[null,null,null,null,null,null,null,"Agro Business Park 40"]
[null,null,null,null,null,null,null,"6708 PW  Wageningen"]
[null,null,null,null,null,null,"Telefoon:","0317-200009"]
[null,null,null,null,null,null,"E-mail:","info@terzake-excel.nl"]
["Onderwerp:",null,"wqerwerw",null,null,null,"Website:","www.terzake-excel.nl"]
["Besteldatum:",null,"22-07-2019",null,null,null,"KVK-nummer:","XXXXX"]
["Factuurnummer:",null,"7",null,null,null,"BTW-nummer:","XXXXX"]
["Vervaldatum factuur:",null,"05-08-2019",null,null,null,"IBAN:","XXXXX"]
[]
[]
["Artikelnummer",null,"Artikelomschrijving",null,null,"Aantal","Prijs/eenheid","BTW","Bedrag"]
[null,null,null,null,null,null,null,null,null,{"$f":"I17/(1+H17)*(H17)","v":0}]
[null,null,null,null,null,null,null,null,null,0]
["3",null,"Pen",null,null,"1",2,0.09,6,{"$f":"I19/(1+H19)*(H19)","v":0.49541284403669722}]
[null,null,null,null,null,null,null,null,null,{"$f":"I20/(1+H20)*(H20)","v":0}]
["23",null,"Boekje",null,null,"1",10,0.09,230,18.990825688073393]
[null,null,null,null,null,null,null,null,null,0]
["23",null,"Boekje",null,null,"1",10,0.09,230,18.990825688073393]
[null,null,null,null,null,null,null,null,null,0]
["3",null,"Pen",null,null,"1",2,0.09,6,0.49541284403669722]
[null,null,null,null,null,null,null,null,null,0]
["3",null,"Pen",null,null,"1",2,0.09,6,0.49541284403669722]
[null,null,null,null,null,null,null,null,null,0]
["3",null,"Pen",null,null,"1",2,0.09,6,0.49541284403669722]
[null,null,null,null,null,null,null,null,null,0]
["23",null,"Boekje",null,null,"1",10,0.09,230,18.990825688073393]
[null,null,null,null,null,null,null,null,null,0]
["3",null,"Pen",null,null,"1",2,0.09,6,0.49541284403669722]
[null,null,null,null,null,null,null,null,null,0]
["23",null,"Boekje",null,null,"1",10,0.09,230,18.990825688073393]
[null,null,null,null,null,null,null,null,null,0]
["3",null,"Pen",null,null,"1",2,0.09,6,0.49541284403669722]
[null,null,null,null,null,null,null,null,null,0]
[null,null,null,null,null,null,null,null,null,0]
[null,null,null,null,null,null,null,null,null,0]
[]
[null,null,null,null,null,null,"TOTAAL EXCL. BTW",null,{"$f":"I44-I43","v":877.06422018348621}]
[null,null,null,null,null,null,"BTW",null,{"$f":"SUM(J18:J40)","v":78.935779816513758}]
[null,null,null,null,null,null,"TOTAAL TE BETALEN",null,{"$f":"SUM(I17:I40)","v":956}]
[]
[]
["OPMERKINGEN EN VOORWAARDEN"]
["Blablabla"]

{"sheet":"Eigen bedrijfsgegevens","index":4,"n_rows":2,"n_cols":15,"rows_kept":2,"cut":false,"hidden":false,"merged":[]}
["Bedrijfsnaam","Straatnaam en huisnummer","Postcode","Plaats","KvK-nummer","BTW-nummer","Bank","IBAN","Website","E-mail","Pad Logo","Opmerkingen factuur","Betalingstermijn","Laatst gebruikte factuurnummer","Telefoonnummer"]
["","","","","","","","","","",null,"","",0,""]